[Event "Titled Tuesday Blitz November 16 2021"]
[White "Le, Tuan Minh"]
[Black "Triapishko, Alexandr"]
[WhiteFideId "12401153"]
[BlackFideId "14122286"]
[WhiteElo "2450"]
[BlackElo "2479"]
[Result "1/2-1/2"]
[Round "05"]
[TimeControl "180+1"]
[Date "2021.11.16"]
[WhiteClock "0:00:44"]
[BlackClock "0:00:44"]

1. d4 {[%clk 0:03:00]}  d6 {[%clk 0:02:52]} 2. e4 {[%clk 0:02:58]}  e5 {[%clk 0:02:52]} 3. Nf3 {[%clk 0:02:58]}  exd4 {[%clk 0:02:52]} 4. Nxd4 {[%clk 0:02:58]}  Nf6 {[%clk 0:02:52]} 5. Nc3 {[%clk 0:02:59]}  g6 {[%clk 0:02:53]} 6. Bc4 {[%clk 0:02:57]}  Bg7 {[%clk 0:02:53]} 7. Bb3 {[%clk 0:02:57]}  O-O {[%clk 0:02:53]} 8. O-O {[%clk 0:02:58]}  Re8 {[%clk 0:02:54]} 9. Re1 {[%clk 0:02:50]}  Nbd7 {[%clk 0:02:39]} 10. Bg5 {[%clk 0:02:46]}  Nc5 {[%clk 0:02:34]} 11. Nd5 {[%clk 0:02:00]}  c6 {[%clk 0:02:17]} 12. Nxf6+ {[%clk 0:01:43]}  Bxf6 {[%clk 0:02:18]} 13. Bxf6 {[%clk 0:01:44]}  Qxf6 {[%clk 0:02:18]} 14. f3 {[%clk 0:01:45]}  d5 {[%clk 0:02:13]} 15. c3 {[%clk 0:01:19]}  dxe4 {[%clk 0:02:05]} 16. fxe4 {[%clk 0:01:19]}  Rxe4 {[%clk 0:01:59]} 17. Rf1 {[%clk 0:01:16]}  Rf4 {[%clk 0:01:58]} 18. Qd2 {[%clk 0:00:57]}  Rxf1+ {[%clk 0:01:34]} 19. Rxf1 {[%clk 0:00:58]}  Nxb3 {[%clk 0:01:34]} 20. axb3 {[%clk 0:00:57]}  Qe7 {[%clk 0:01:30]} 21. Re1 {[%clk 0:00:56]}  Be6 {[%clk 0:01:19]} 22. Nxe6 {[%clk 0:00:54]}  fxe6 {[%clk 0:01:20]} 23. Qe3 {[%clk 0:00:55]}  Re8 {[%clk 0:01:13]} 24. Qxa7 {[%clk 0:00:55]}  e5 {[%clk 0:01:13]} 25. h3 {[%clk 0:00:50]}  e4 {[%clk 0:01:12]} 26. Qd4 {[%clk 0:00:50]}  e3 {[%clk 0:01:05]} 27. Qc4+ {[%clk 0:00:44]}  Kg7 {[%clk 0:01:00]} 28. Qd4+ {[%clk 0:00:44]}  Kg8 {[%clk 0:00:48]} 29. Qc4+ {[%clk 0:00:44]}  Kg7 {[%clk 0:00:44]} 30. Qd4+ {[%clk 0:00:44]}  Kg8 {[%clk 0:00:44]} 1/2-1/2


[Site "https://www.chess.com"]

[Event "Titled Tuesday Blitz November 16 2021"]
[White "Maksimovic, Bojan"]
[Black "Terry, Renato"]
[WhiteFideId "14408120"]
[BlackFideId "3803457"]
[WhiteElo "2439"]
[BlackElo "2577"]
[Result "0-1"]
[Round "05"]
[TimeControl "180+1"]
[Date "2021.11.16"]
[WhiteClock "0:00:05"]
[BlackClock "0:00:24"]

1. Nf3 {[%clk 0:03:00]}  Nf6 {[%clk 0:03:00]} 2. c4 {[%clk 0:03:00]}  b6 {[%clk 0:03:00]} 3. g3 {[%clk 0:02:58]}  Bb7 {[%clk 0:03:00]} 4. Bg2 {[%clk 0:02:59]}  g6 {[%clk 0:03:00]} 5. b3 {[%clk 0:02:57]}  Bg7 {[%clk 0:03:00]} 6. Bb2 {[%clk 0:02:58]}  O-O {[%clk 0:03:01]} 7. O-O {[%clk 0:02:58]}  c5 {[%clk 0:03:01]} 8. d4 {[%clk 0:02:56]}  cxd4 {[%clk 0:03:02]} 9. Nxd4 {[%clk 0:02:57]}  Bxg2 {[%clk 0:03:02]} 10. Kxg2 {[%clk 0:02:57]}  d5 {[%clk 0:03:01]} 11. cxd5 {[%clk 0:02:43]}  Qxd5+ {[%clk 0:03:01]} 12. Nf3 {[%clk 0:02:41]}  Qb7 {[%clk 0:03:01]} 13. e3 {[%clk 0:02:25]}  Nbd7 {[%clk 0:02:48]} 14. Qe2 {[%clk 0:02:24]}  Rac8 {[%clk 0:02:45]} 15. Na3 {[%clk 0:02:13]}  Nc5 {[%clk 0:02:24]} 16. Rfd1 {[%clk 0:02:10]}  Nfe4 {[%clk 0:02:16]} 17. Bxg7 {[%clk 0:02:01]}  Kxg7 {[%clk 0:02:16]} 18. Rac1 {[%clk 0:02:00]}  Kg8 {[%clk 0:02:05]} 19. Kg1 {[%clk 0:01:58]}  Rfd8 {[%clk 0:02:03]} 20. Rd4 {[%clk 0:01:36]}  Ne6 {[%clk 0:01:57]} 21. Rxd8+ {[%clk 0:01:33]}  Rxd8 {[%clk 0:01:58]} 22. Nc4 {[%clk 0:01:29]}  N4g5 {[%clk 0:01:35]} 23. Nce5 {[%clk 0:01:25]}  f6 {[%clk 0:01:15]} 24. Nxg5 {[%clk 0:00:48]}  Nxg5 {[%clk 0:01:16]} 25. h4 {[%clk 0:00:48]}  Nh3+ {[%clk 0:01:03]} 26. Kh2 {[%clk 0:00:48]}  Nxf2 {[%clk 0:00:55]} 27. Nc6 {[%clk 0:00:23]}  Rd6 {[%clk 0:00:53]} 28. Qxf2 {[%clk 0:00:11]}  Rxc6 {[%clk 0:00:53]} 29. Qg2 {[%clk 0:00:11]}  Rc7 {[%clk 0:00:53]} 30. Qxb7 {[%clk 0:00:09]}  Rxb7 {[%clk 0:00:54]} 31. Kg2 {[%clk 0:00:09]}  h5 {[%clk 0:00:53]} 32. Kf3 {[%clk 0:00:10]}  Kf7 {[%clk 0:00:52]} 33. Ke4 {[%clk 0:00:10]}  Rd7 {[%clk 0:00:52]} 34. Rc2 {[%clk 0:00:10]}  Ke6 {[%clk 0:00:48]} 35. Rc6+ {[%clk 0:00:10]}  Kf7 {[%clk 0:00:46]} 36. Rc2 {[%clk 0:00:10]}  Rd6 {[%clk 0:00:37]} 37. Rc7 {[%clk 0:00:10]}  a5 {[%clk 0:00:37]} 38. Rc2 {[%clk 0:00:10]}  Ke6 {[%clk 0:00:37]} 39. Rf2 {[%clk 0:00:09]}  Kd7 {[%clk 0:00:37]} 40. Rc2 {[%clk 0:00:09]}  Re6+ {[%clk 0:00:34]} 41. Kf4 {[%clk 0:00:09]}  Re5 {[%clk 0:00:35]} 42. e4 {[%clk 0:00:08]}  Rc5 {[%clk 0:00:33]} 43. Rg2 {[%clk 0:00:08]}  e5+ {[%clk 0:00:27]} 44. Ke3 {[%clk 0:00:07]}  Ke6 {[%clk 0:00:26]} 45. g4 {[%clk 0:00:07]}  Rc3+ {[%clk 0:00:23]} 46. Kd2 {[%clk 0:00:07]}  Rh3 {[%clk 0:00:24]} 47. gxh5 {[%clk 0:00:07]}  gxh5 {[%clk 0:00:25]} 48. Rg7 {[%clk 0:00:08]}  Rxh4 {[%clk 0:00:24]} 49. Rb7 {[%clk 0:00:08]}  Rh2+ {[%clk 0:00:24]} 50. Ke3 {[%clk 0:00:06]}  Rxa2 {[%clk 0:00:25]} 51. Rxb6+ {[%clk 0:00:06]}  Kf7 {[%clk 0:00:26]} 52. Ra6 {[%clk 0:00:04]}  Ra3 {[%clk 0:00:25]} 53. Kf2 {[%clk 0:00:05]}  Kg6 {[%clk 0:00:24]} 0-1


[Site "https://www.chess.com"]

[Event "Titled Tuesday Blitz November 16 2021"]
[White "Perez Ponsa, Federico"]
[Black "Golubka, Petro"]
[WhiteFideId "117927"]
[BlackFideId "14114224"]
[WhiteElo "2672"]
[BlackElo "2392"]
[Result "0-1"]
[Round "05"]
[TimeControl "180+1"]
[Date "2021.11.16"]
[WhiteClock "0:00:14"]
[BlackClock "0:00:56"]

1. d4 {[%clk 0:02:54]}  d5 {[%clk 0:02:59]} 2. Nf3 {[%clk 0:02:53]}  c6 {[%clk 0:03:00]} 3. Bf4 {[%clk 0:02:47]}  Bg4 {[%clk 0:02:59]} 4. e3 {[%clk 0:02:43]}  Nf6 {[%clk 0:02:58]} 5. c4 {[%clk 0:02:42]}  dxc4 {[%clk 0:02:56]} 6. Bxc4 {[%clk 0:02:42]}  e6 {[%clk 0:02:57]} 7. O-O {[%clk 0:02:41]}  Nbd7 {[%clk 0:02:54]} 8. Nc3 {[%clk 0:02:38]}  Be7 {[%clk 0:02:52]} 9. h3 {[%clk 0:02:35]}  Bh5 {[%clk 0:02:52]} 10. Bb3 {[%clk 0:02:33]}  O-O {[%clk 0:02:49]} 11. e4 {[%clk 0:02:24]}  Nb6 {[%clk 0:02:42]} 12. Be3 {[%clk 0:02:23]}  a5 {[%clk 0:02:39]} 13. a4 {[%clk 0:02:23]}  Bb4 {[%clk 0:02:38]} 14. e5 {[%clk 0:02:17]}  Nfd5 {[%clk 0:02:37]} 15. Ne4 {[%clk 0:02:16]}  Bg6 {[%clk 0:02:33]} 16. Ng3 {[%clk 0:02:08]}  Rc8 {[%clk 0:02:30]} 17. Rc1 {[%clk 0:02:06]}  Be7 {[%clk 0:02:16]} 18. Bd2 {[%clk 0:02:05]}  Nb4 {[%clk 0:02:16]} 19. Bxb4 {[%clk 0:02:01]}  Bxb4 {[%clk 0:02:15]} 20. Bc2 {[%clk 0:01:59]}  Nd5 {[%clk 0:02:14]} 21. Bxg6 {[%clk 0:01:58]}  hxg6 {[%clk 0:02:09]} 22. Ne4 {[%clk 0:01:58]}  Be7 {[%clk 0:02:08]} 23. g3 {[%clk 0:01:50]}  b6 {[%clk 0:02:02]} 24. Kg2 {[%clk 0:01:50]}  b5 {[%clk 0:02:01]} 25. h4 {[%clk 0:01:47]}  Qb6 {[%clk 0:01:56]} 26. Rh1 {[%clk 0:01:40]}  bxa4 {[%clk 0:01:53]} 27. h5 {[%clk 0:01:37]}  gxh5 {[%clk 0:01:42]} 28. Rxh5 {[%clk 0:01:36]}  g6 {[%clk 0:01:42]} 29. Qh1 {[%clk 0:01:22]}  gxh5 {[%clk 0:01:40]} 30. Qxh5 {[%clk 0:01:23]}  Ne3+ {[%clk 0:01:20]} 31. Kh3 {[%clk 0:00:32]}  Kg7 {[%clk 0:01:11]} 32. Nh4 {[%clk 0:00:30]}  Rh8 {[%clk 0:01:07]} 33. Qf3 {[%clk 0:00:29]}  Nf5 {[%clk 0:01:06]} 34. Qg4+ {[%clk 0:00:24]}  Kf8 {[%clk 0:01:04]} 35. Nf6 {[%clk 0:00:25]}  Qxd4 {[%clk 0:00:58]} 36. Qxd4 {[%clk 0:00:14]}  Nxd4 {[%clk 0:00:59]} 37. Kg2 {[%clk 0:00:14]}  Bxf6 {[%clk 0:00:56]} 38. exf6 {[%clk 0:00:15]}  Rh6 {[%clk 0:00:56]} 39. Rd1 {[%clk 0:00:14]}  c5 {[%clk 0:00:56]} 0-1


[Site "https://www.chess.com"]

[Event "Titled Tuesday Blitz November 16 2021"]
[White "Pichot, Alan"]
[Black "Trent, Lawrence"]
[WhiteFideId "110973"]
[BlackFideId "408638"]
[WhiteElo "2600"]
[BlackElo "2474"]
[Result "1-0"]
[Round "05"]
[TimeControl "180+1"]
[Date "2021.11.16"]
[WhiteClock "0:00:23"]
[BlackClock "0:00:39"]

1. e4 {[%clk 0:03:00]}  c5 {[%clk 0:02:59]} 2. Nf3 {[%clk 0:03:00]}  Nc6 {[%clk 0:02:59]} 3. d4 {[%clk 0:03:00]}  cxd4 {[%clk 0:02:59]} 4. Nxd4 {[%clk 0:03:01]}  Nf6 {[%clk 0:02:59]} 5. Nc3 {[%clk 0:03:01]}  e5 {[%clk 0:02:59]} 6. Ndb5 {[%clk 0:03:01]}  d6 {[%clk 0:02:59]} 7. Nd5 {[%clk 0:03:01]}  Nxd5 {[%clk 0:02:58]} 8. exd5 {[%clk 0:03:01]}  Nb8 {[%clk 0:02:58]} 9. c4 {[%clk 0:03:02]}  a6 {[%clk 0:02:58]} 10. Nc3 {[%clk 0:03:01]}  Nd7 {[%clk 0:02:59]} 11. Bd3 {[%clk 0:02:59]}  g6 {[%clk 0:02:59]} 12. O-O {[%clk 0:02:40]}  Bg7 {[%clk 0:02:58]} 13. b3 {[%clk 0:02:28]}  f5 {[%clk 0:02:58]} 14. Bb2 {[%clk 0:02:23]}  O-O {[%clk 0:02:56]} 15. Qd2 {[%clk 0:02:17]}  e4 {[%clk 0:02:56]} 16. Be2 {[%clk 0:02:15]}  Ne5 {[%clk 0:02:56]} 17. Rae1 {[%clk 0:02:05]}  Qh4 {[%clk 0:02:54]} 18. f4 {[%clk 0:01:59]}  exf3 {[%clk 0:02:52]} 19. Bxf3 {[%clk 0:01:58]}  Bd7 {[%clk 0:02:52]} 20. g3 {[%clk 0:01:55]}  Nxf3+ {[%clk 0:02:46]} 21. Rxf3 {[%clk 0:01:55]}  Qd4+ {[%clk 0:02:46]} 22. Qxd4 {[%clk 0:01:50]}  Bxd4+ {[%clk 0:02:47]} 23. Kg2 {[%clk 0:01:27]}  Rfe8 {[%clk 0:02:18]} 24. Rd1 {[%clk 0:01:25]}  Bg7 {[%clk 0:02:17]} 25. Ba3 {[%clk 0:01:23]}  f4 {[%clk 0:02:05]} 26. Bxd6 {[%clk 0:01:08]}  Bg4 {[%clk 0:02:03]} 27. Rdd3 {[%clk 0:01:00]}  Bxf3+ {[%clk 0:01:56]} 28. Kxf3 {[%clk 0:01:01]}  fxg3 {[%clk 0:01:55]} 29. Bxg3 {[%clk 0:01:01]}  Rf8+ {[%clk 0:01:54]} 30. Kg2 {[%clk 0:01:00]}  Rae8 {[%clk 0:01:54]} 31. d6 {[%clk 0:00:57]}  Bxc3 {[%clk 0:01:45]} 32. Rxc3 {[%clk 0:00:58]}  Re2+ {[%clk 0:01:44]} 33. Kh3 {[%clk 0:00:57]}  h5 {[%clk 0:01:33]} 34. Rd3 {[%clk 0:00:54]}  Rd8 {[%clk 0:01:08]} 35. a3 {[%clk 0:00:52]}  g5 {[%clk 0:01:03]} 36. Rd5 {[%clk 0:00:50]}  g4+ {[%clk 0:00:59]} 37. Kh4 {[%clk 0:00:51]}  Kf7 {[%clk 0:00:58]} 38. Rxh5 {[%clk 0:00:48]}  Re3 {[%clk 0:00:57]} 39. b4 {[%clk 0:00:40]}  Rxa3 {[%clk 0:00:57]} 40. Kxg4 {[%clk 0:00:39]}  Rc3 {[%clk 0:00:54]} 41. Rc5 {[%clk 0:00:33]}  Ke6 {[%clk 0:00:47]} 42. Re5+ {[%clk 0:00:27]}  Kf6 {[%clk 0:00:40]} 43. Re4 {[%clk 0:00:23]}  Rb3 {[%clk 0:00:39]} 44. Bh4+ {[%clk 0:00:23]} 1-0


[Site "https://www.chess.com"]

[Event "Titled Tuesday Blitz November 16 2021"]
[White "Pour Agha Bala, Amirreza"]
[Black "Yaksin, Oleg"]
[WhiteFideId "12572896"]
[BlackFideId "24105880"]
[WhiteElo "2313"]
[BlackElo "2256"]
[Result "1-0"]
[Round "05"]
[TimeControl "180+1"]
[Date "2021.11.16"]
[WhiteClock "0:00:36"]
[BlackClock "0:00:01"]

1. d4 {[%clk 0:03:00]}  Nf6 {[%clk 0:02:59]} 2. c4 {[%clk 0:03:01]}  e6 {[%clk 0:02:59]} 3. a3 {[%clk 0:03:00]}  b6 {[%clk 0:02:54]} 4. Nc3 {[%clk 0:02:59]}  Bb7 {[%clk 0:02:54]} 5. f3 {[%clk 0:02:59]}  d5 {[%clk 0:02:49]} 6. Nh3 {[%clk 0:02:54]}  Be7 {[%clk 0:02:48]} 7. Nf2 {[%clk 0:02:50]}  O-O {[%clk 0:02:47]} 8. cxd5 {[%clk 0:02:42]}  exd5 {[%clk 0:02:33]} 9. g3 {[%clk 0:02:40]}  c5 {[%clk 0:02:32]} 10. e3 {[%clk 0:02:40]}  cxd4 {[%clk 0:02:27]} 11. exd4 {[%clk 0:02:37]}  Nc6 {[%clk 0:02:08]} 12. Bb5 {[%clk 0:02:31]}  Rc8 {[%clk 0:01:54]} 13. O-O {[%clk 0:02:30]}  a6 {[%clk 0:01:50]} 14. Bxc6 {[%clk 0:02:29]}  Bxc6 {[%clk 0:01:50]} 15. Qd3 {[%clk 0:02:26]}  Bb7 {[%clk 0:01:46]} 16. Bf4 {[%clk 0:02:24]}  Rc4 {[%clk 0:01:42]} 17. Nfd1 {[%clk 0:02:21]}  Rxd4 {[%clk 0:01:40]} 18. Qe2 {[%clk 0:02:07]}  Bc5 {[%clk 0:01:32]} 19. Kh1 {[%clk 0:01:57]}  Re8 {[%clk 0:01:31]} 20. Qg2 {[%clk 0:01:51]}  Rd3 {[%clk 0:01:09]} 21. Ne2 {[%clk 0:01:48]}  d4 {[%clk 0:01:02]} 22. Ng1 {[%clk 0:01:48]}  Ng4 {[%clk 0:00:56]} 23. b4 {[%clk 0:01:45]}  Bd6 {[%clk 0:00:30]} 24. Nf2 {[%clk 0:01:45]}  Nxf2+ {[%clk 0:00:27]} 25. Rxf2 {[%clk 0:01:44]}  Bxf4 {[%clk 0:00:28]} 26. gxf4 {[%clk 0:01:43]}  Qf6 {[%clk 0:00:28]} 27. Qg4 {[%clk 0:01:34]}  Rde3 {[%clk 0:00:24]} 28. Rc1 {[%clk 0:01:32]}  d3 {[%clk 0:00:23]} 29. Qd7 {[%clk 0:01:25]}  R3e7 {[%clk 0:00:08]} 30. Qxd3 {[%clk 0:01:24]}  Qxf4 {[%clk 0:00:08]} 31. Rd1 {[%clk 0:01:24]}  h6 {[%clk 0:00:08]} 32. Nh3 {[%clk 0:01:17]}  Qh4 {[%clk 0:00:08]} 33. Qf1 {[%clk 0:01:17]}  Re3 {[%clk 0:00:07]} 34. Ng1 {[%clk 0:01:15]}  Qf4 {[%clk 0:00:07]} 35. Qh3 {[%clk 0:01:14]}  Re1 {[%clk 0:00:06]} 36. Rxe1 {[%clk 0:01:12]}  Rxe1 {[%clk 0:00:07]} 37. Rf1 {[%clk 0:01:12]}  Rxf1 {[%clk 0:00:05]} 38. Qxf1 {[%clk 0:01:13]}  Qe3 {[%clk 0:00:06]} 39. Qc4 {[%clk 0:01:11]}  Bxf3+ {[%clk 0:00:05]} 40. Nxf3 {[%clk 0:01:10]}  Qxf3+ {[%clk 0:00:06]} 41. Kg1 {[%clk 0:01:10]}  Qe3+ {[%clk 0:00:06]} 42. Kg2 {[%clk 0:01:09]}  Qd2+ {[%clk 0:00:06]} 43. Kh1 {[%clk 0:01:06]}  Qe1+ {[%clk 0:00:04]} 44. Kg2 {[%clk 0:01:05]}  Qd2+ {[%clk 0:00:05]} 45. Kf3 {[%clk 0:01:04]}  Qd1+ {[%clk 0:00:04]} 46. Ke3 {[%clk 0:01:03]}  Qe1+ {[%clk 0:00:03]} 47. Kf3 {[%clk 0:01:02]}  Qe7 {[%clk 0:00:01]} 48. Qxa6 {[%clk 0:01:00]}  Qf6+ {[%clk 0:00:01]} 49. Kg2 {[%clk 0:01:00]}  Qg6+ {[%clk 0:00:01]} 50. Kf2 {[%clk 0:00:59]}  Qc2+ {[%clk 0:00:02]} 51. Ke3 {[%clk 0:00:57]}  Qxh2 {[%clk 0:00:02]} 52. Qc8+ {[%clk 0:00:55]}  Kh7 {[%clk 0:00:01]} 53. Qf5+ {[%clk 0:00:55]}  Kg8 {[%clk 0:00:02]} 54. Kd4 {[%clk 0:00:47]}  Qg1+ {[%clk 0:00:02]} 55. Kc4 {[%clk 0:00:46]}  Qc1+ {[%clk 0:00:01]} 56. Kb5 {[%clk 0:00:44]}  Qxa3 {[%clk 0:00:01]} 57. Qc8+ {[%clk 0:00:42]}  Kh7 {[%clk 0:00:02]} 58. Qf5+ {[%clk 0:00:42]}  Kg8 {[%clk 0:00:02]} 59. Qe4 {[%clk 0:00:37]}  Qa7 {[%clk 0:00:01]} 60. Qe3 {[%clk 0:00:36]} 1-0


[Site "https://www.chess.com"]

[Event "Titled Tuesday Blitz November 16 2021"]
[White "Shubin, Kirill"]
[Black "Sviridov, Valery"]
[WhiteFideId "34119962"]
[BlackFideId "4120680"]
[WhiteElo "2501"]
[BlackElo "2454"]
[Result "0-1"]
[Round "05"]
[TimeControl "180+1"]
[Date "2021.11.16"]
[WhiteClock "0:00:06"]
[BlackClock "0:00:17"]

1. e4 {[%clk 0:03:00]}  Nf6 {[%clk 0:02:59]} 2. e5 {[%clk 0:02:59]}  Nd5 {[%clk 0:02:59]} 3. d4 {[%clk 0:02:59]}  d6 {[%clk 0:02:59]} 4. Nf3 {[%clk 0:02:59]}  dxe5 {[%clk 0:02:59]} 5. Nxe5 {[%clk 0:02:58]}  c6 {[%clk 0:02:59]} 6. g3 {[%clk 0:02:52]}  Nd7 {[%clk 0:02:59]} 7. Nf3 {[%clk 0:02:47]}  N7f6 {[%clk 0:02:58]} 8. Bg2 {[%clk 0:02:47]}  Bf5 {[%clk 0:02:58]} 9. O-O {[%clk 0:02:46]}  e6 {[%clk 0:02:58]} 10. Re1 {[%clk 0:02:44]}  Be7 {[%clk 0:02:57]} 11. a3 {[%clk 0:02:35]}  O-O {[%clk 0:02:56]} 12. c4 {[%clk 0:02:29]}  Nb6 {[%clk 0:02:56]} 13. b3 {[%clk 0:02:29]}  a5 {[%clk 0:02:51]} 14. a4 {[%clk 0:02:28]}  h6 {[%clk 0:02:50]} 15. Bb2 {[%clk 0:02:26]}  Qc7 {[%clk 0:02:50]} 16. Nbd2 {[%clk 0:02:12]}  Rad8 {[%clk 0:02:49]} 17. Qe2 {[%clk 0:02:10]}  Bb4 {[%clk 0:02:47]} 18. Red1 {[%clk 0:02:02]}  Rfe8 {[%clk 0:02:34]} 19. Nf1 {[%clk 0:02:00]}  Nbd7 {[%clk 0:02:28]} 20. Rac1 {[%clk 0:01:58]}  Bh7 {[%clk 0:02:12]} 21. Ne3 {[%clk 0:01:47]}  Be4 {[%clk 0:02:04]} 22. c5 {[%clk 0:01:37]}  Bxf3 {[%clk 0:01:50]} 23. Qxf3 {[%clk 0:01:35]}  e5 {[%clk 0:01:51]} 24. dxe5 {[%clk 0:01:28]}  Nxe5 {[%clk 0:01:51]} 25. Qf4 {[%clk 0:01:25]}  Rxd1+ {[%clk 0:01:38]} 26. Rxd1 {[%clk 0:01:26]}  Qe7 {[%clk 0:01:38]} 27. Nf5 {[%clk 0:01:04]}  Qe6 {[%clk 0:01:31]} 28. Bxe5 {[%clk 0:00:44]}  Qxe5 {[%clk 0:01:31]} 29. Qxe5 {[%clk 0:00:45]}  Rxe5 {[%clk 0:01:31]} 30. Nd6 {[%clk 0:00:44]}  Re7 {[%clk 0:00:58]} 31. Nf5 {[%clk 0:00:38]}  Rd7 {[%clk 0:00:55]} 32. Rxd7 {[%clk 0:00:34]}  Nxd7 {[%clk 0:00:56]} 33. Bf1 {[%clk 0:00:32]}  Nxc5 {[%clk 0:00:47]} 34. Bc4 {[%clk 0:00:31]}  Ne4 {[%clk 0:00:48]} 35. Kg2 {[%clk 0:00:22]}  Nd2 {[%clk 0:00:48]} 36. Ne3 {[%clk 0:00:20]}  Bc5 {[%clk 0:00:46]} 37. Nc2 {[%clk 0:00:20]}  Kf8 {[%clk 0:00:43]} 38. Ne1 {[%clk 0:00:19]}  Ke7 {[%clk 0:00:37]} 39. Nd3 {[%clk 0:00:19]}  Bd4 {[%clk 0:00:37]} 40. f4 {[%clk 0:00:17]}  b5 {[%clk 0:00:19]} 41. axb5 {[%clk 0:00:17]}  Nxc4 {[%clk 0:00:20]} 42. bxc4 {[%clk 0:00:13]}  cxb5 {[%clk 0:00:21]} 43. cxb5 {[%clk 0:00:13]}  a4 {[%clk 0:00:21]} 44. Nb4 {[%clk 0:00:13]}  Kd6 {[%clk 0:00:20]} 45. Nc2 {[%clk 0:00:11]}  Bb2 {[%clk 0:00:12]} 46. Kf3 {[%clk 0:00:08]}  f5 {[%clk 0:00:12]} 47. Ke2 {[%clk 0:00:08]}  a3 {[%clk 0:00:12]} 48. b6 {[%clk 0:00:08]}  a2 {[%clk 0:00:11]} 49. b7 {[%clk 0:00:06]}  Kc7 {[%clk 0:00:11]} 50. Kd3 {[%clk 0:00:07]}  Kxb7 {[%clk 0:00:11]} 51. Kc4 {[%clk 0:00:06]}  Kc7 {[%clk 0:00:11]} 52. Kd5 {[%clk 0:00:06]}  Kd7 {[%clk 0:00:11]} 53. h4 {[%clk 0:00:05]}  a1=Q {[%clk 0:00:10]} 54. Nxa1 {[%clk 0:00:05]}  Bxa1 {[%clk 0:00:11]} 55. h5 {[%clk 0:00:03]}  Ke7 {[%clk 0:00:11]} 56. Kc4 {[%clk 0:00:03]}  Kf6 {[%clk 0:00:12]} 57. Kd3 {[%clk 0:00:04]}  Bb2 {[%clk 0:00:12]} 58. Ke2 {[%clk 0:00:04]}  Ba3 {[%clk 0:00:12]} 59. Kf3 {[%clk 0:00:05]}  Bc5 {[%clk 0:00:13]} 60. Kg2 {[%clk 0:00:05]}  Ke6 {[%clk 0:00:14]} 61. Kf3 {[%clk 0:00:06]}  Kd5 {[%clk 0:00:14]} 62. g4 {[%clk 0:00:06]}  fxg4+ {[%clk 0:00:15]} 63. Kxg4 {[%clk 0:00:07]}  Ke4 {[%clk 0:00:16]} 64. Kg3 {[%clk 0:00:07]}  Kf5 {[%clk 0:00:16]} 65. Kf3 {[%clk 0:00:06]}  Bd6 {[%clk 0:00:17]} 0-1


[Site "https://www.chess.com"]

[Event "Titled Tuesday Blitz November 16 2021"]
[White "Sorokin, Aleksey"]
[Black "Aloma Vidal, Robert"]
[WhiteFideId "24176460"]
[BlackFideId "2260409"]
[WhiteElo "2476"]
[BlackElo "2435"]
[Result "0-1"]
[Round "05"]
[TimeControl "180+1"]
[Date "2021.11.16"]
[WhiteClock "0:00:04"]
[BlackClock "0:00:54"]

1. e4 {[%clk 0:03:00]}  e5 {[%clk 0:02:59]} 2. Nf3 {[%clk 0:03:00]}  Nf6 {[%clk 0:02:59]} 3. Nxe5 {[%clk 0:02:59]}  d6 {[%clk 0:02:59]} 4. Nf3 {[%clk 0:02:59]}  Nxe4 {[%clk 0:02:58]} 5. d4 {[%clk 0:03:00]}  d5 {[%clk 0:02:58]} 6. Bd3 {[%clk 0:02:59]}  Bf5 {[%clk 0:02:59]} 7. O-O {[%clk 0:02:58]}  Be7 {[%clk 0:03:00]} 8. Re1 {[%clk 0:02:57]}  O-O {[%clk 0:02:58]} 9. Nbd2 {[%clk 0:02:56]}  Nd6 {[%clk 0:02:57]} 10. Bxf5 {[%clk 0:02:54]}  Nxf5 {[%clk 0:02:57]} 11. Nf1 {[%clk 0:02:54]}  Nd7 {[%clk 0:02:41]} 12. Qd3 {[%clk 0:02:52]}  g6 {[%clk 0:02:40]} 13. Ne3 {[%clk 0:02:42]}  Nd6 {[%clk 0:02:31]} 14. Nxd5 {[%clk 0:02:40]}  Bf6 {[%clk 0:02:17]} 15. Bf4 {[%clk 0:02:33]}  Nb6 {[%clk 0:02:12]} 16. Nxf6+ {[%clk 0:02:20]}  Qxf6 {[%clk 0:02:12]} 17. Be5 {[%clk 0:02:20]}  Qf5 {[%clk 0:02:10]} 18. Qxf5 {[%clk 0:02:20]}  Nxf5 {[%clk 0:02:10]} 19. Bxc7 {[%clk 0:02:18]}  Na4 {[%clk 0:02:07]} 20. b3 {[%clk 0:02:01]}  Rac8 {[%clk 0:02:06]} 21. Be5 {[%clk 0:01:54]}  Nc3 {[%clk 0:02:05]} 22. g4 {[%clk 0:01:52]}  Ng7 {[%clk 0:02:04]} 23. Bxg7 {[%clk 0:01:34]}  Kxg7 {[%clk 0:02:05]} 24. Re7 {[%clk 0:01:31]}  b5 {[%clk 0:01:57]} 25. Rxa7 {[%clk 0:01:27]}  Ne2+ {[%clk 0:01:57]} 26. Kf1 {[%clk 0:01:23]}  Rxc2 {[%clk 0:01:58]} 27. a4 {[%clk 0:01:15]}  b4 {[%clk 0:01:47]} 28. a5 {[%clk 0:01:13]}  Nc1 {[%clk 0:01:45]} 29. Rb1 {[%clk 0:01:05]}  Nd3 {[%clk 0:01:44]} 30. Ne5 {[%clk 0:00:51]}  Nxf2 {[%clk 0:01:44]} 31. Ra1 {[%clk 0:00:44]}  Ne4 {[%clk 0:01:44]} 32. a6 {[%clk 0:00:32]}  Nd2+ {[%clk 0:01:40]} 33. Kg1 {[%clk 0:00:32]}  Nxb3 {[%clk 0:01:40]} 34. Rf1 {[%clk 0:00:32]}  Nxd4 {[%clk 0:01:38]} 35. Nxf7 {[%clk 0:00:21]}  b3 {[%clk 0:01:13]} 36. Rd7 {[%clk 0:00:21]}  Ne2+ {[%clk 0:01:10]} 37. Kh1 {[%clk 0:00:20]}  b2 {[%clk 0:01:10]} 38. a7 {[%clk 0:00:12]}  Rc1 {[%clk 0:01:08]} 39. Nd8+ {[%clk 0:00:10]}  Kh6 {[%clk 0:01:06]} 40. Nf7+ {[%clk 0:00:06]}  Rxf7 {[%clk 0:01:00]} 41. Rxf7 {[%clk 0:00:06]}  b1=Q {[%clk 0:01:00]} 42. g5+ {[%clk 0:00:04]}  Kxg5 {[%clk 0:00:59]} 43. h4+ {[%clk 0:00:04]}  Kxh4 {[%clk 0:00:56]} 44. a8=Q {[%clk 0:00:04]}  Rxf1+ {[%clk 0:00:54]} 0-1


[Site "https://www.chess.com"]